Workbook

Sheet 福建省马尾造船股份有限公司待处置清单
A1: 福建省马尾造船股份有限公司待处置清单
A2: 序号 | B2: 物资名称 | C2: 物资型号 | D2: 物资规格 | E2: 数量 | F2: 单位
A3: 1 | B3: 船模 | C3: ---- | D3: 89M船模 | E3: 1 | F3: 个
A4: 2 | B4: 船模 | C4: ---- | D4: 98M船模 | E4: 1 | F4: 个
A5: 3 | B5: 船模 | C5: ---- | D5: ---- | E5: 1 | F5: 艘
A6: 4 | B6: 船模 | C6: ---- | D6: ---- | E6: 1 | F6: 艘
A7: 5 | B7: 船模 | C7: ---- | D7: ---- | E7: 2 | F7: 艘
A8: 6 | B8: 船模 | C8: ---- | D8: ---- | E8: 2 | F8: 艘
A9: 7 | B9: 台灯 | C9: ---- | D9: CTD2 | E9: 65 | F9: 只
A10: 8 | B10: 台灯 | C10: ---- | D10: KBN-523B | E10: 30 | F10: 只
A11: 9 | B11: 壁灯 | C11: ---- | D11: CBD1 | E11: 5 | F11: 只
A12: 10 | B12: 舱顶灯 | C12: ---- | D12: JCY23-2 | E12: 36 | F12: 只
A13: 11 | B13: 走道灯 | C13: ---- | D13: JBY20-1 | E13: 1 | F13: 只
A14: 12 | B14: 走道灯 | C14: ---- | D14: JBY20-1 | E14: 1 | F14: 只
A15: 13 | B15: 蓬顶灯 | C15: ---- | D15: LZYP25-2 | E15: 42 | F15: 只
A16: 14 | B16: 投光灯 | C16: ---- | D16: DHF220-500L/卤素防爆 | E16: 1 | F16: 只
A17: 15 | B17: 投光灯 | C17: ---- | D17: DHF220-500L/卤素防爆 | E17: 1 | F17: 只
A18: 16 | B18: 工作灯 | C18: --- | D18: JC52D-1 | E18: 2 | F18: 只
A19: 17 | B19: 蓬顶灯 | C19: --- | D19: LZYP25-2G | E19: 41 | F19: 只
A20: 18 | B20: 灯具 | C20: 应急荧光诱导灯 | D20: TG-L36C | E20: 6 | F20: 只
A21: 19 | B21: 蓬顶灯 | C21: ---- | D21: JPY21-2 | E21: 3 | F21: 只
A22: 20 | B22: 蓬顶灯 | C22: ---- | D22: JPY21-2 | E22: 3 | F22: 只
A23: 21 | B23: 蓬顶灯 | C23: ---- | D23: JPY21-2 | E23: 3 | F23: 只
A24: 22 | B24: 轴接地仪表箱 | C24: ---- | D24: 数字式毫伏仪表箱 | E24: 1 | F24: 台
A25: 23 | B25: 水泥系统附件 | C25: ABB面板 | D25: ---- | E25: 2 | F25: 个
A26: 24 | B26: 应发空滤指示器 | C26: 国内设备 | D26: ---- | E26: 1 | F26: 只
A27: 25 | B27: 主电源开关 | C27: 主发 | D27: ---- | E27: 3 | F27: 套
A28: 26 | B28: 应发空气滤芯 | C28: 国内设备 | D28: 3924541 | E28: 2 | F28: 套
A29: 27 | B29: 应发液位开关 | C29: 国内设备 | D29: ---- | E29: 1 | F29: 只
A30: 28 | B30: 靠球 | C30: ---- | D30: ---- | E30: 2 | F30: 个
A31: 29 | B31: 铝阳极 | C31: ---- | D31: 800X140X40 A11H-3 | E31: 18 | F31: 块
A32: 30 | B32: 夹持器 | C32: ---- | D32: LJA-250-322 | E32: 9 | F32: 个
A33: 31 | B33: 音叉传感器 | C33: ---- | D33: JBYC-300 | E33: 6 | F33: 套
A34: 32 | B34: 音叉传感器 | C34: ---- | D34: JBRD-601 | E34: 6 | F34: 套
A35: 33 | B35: 空滤指示器 | C35: ---- | D35: 4917752 | E35: 1 | F35: 套
A36: 34 | B36: AO快开闭防火风雨密钢质门 | C36: ---- | D36: A0 850X1620-8 | E36: 6 | F36: 件
A37: 35 | B37: AO快开闭防火风雨密钢质门 | C37: ---- | D37: A0 700X1600-8 | E37: 6 | F37: 件
A38: 36 | B38: 快开闭钢质风雨密门 | C38: ---- | D38: 650X1600 A60 | E38: 12 | F38: 件
A39: 37 | B39: 快开闭钢质水密门 | C39: A60 | D39: 1600*700 | E39: 4 | F39: 件
A40: 38 | B40: 快开闭钢质水密门 | C40: A60 | D40: 1400*750 | E40: 2 | F40: 件
A41: 39 | B41: 快开闭钢质风雨密门 | C41: ---- | D41: 1600X750 | E41: 6 | F41: 件
A42: 40 | B42: 快开闭钢质风雨密门 | C42: ---- | D42: 1000*600 | E42: 2 | F42: 件
A43: 41 | B43: 快速启闭风雨密小舱盖 | C43: ---- | D43: CB/T 3728-1995 C630X630X8-11X600 | E43: 13 | F43: 件
A44: 42 | B44: 吊物口水密盖 | C44: ---- | D44: 1350*900-12 R170 | E44: 2 | F44: 件
A45: 43 | B45: 小舱盖 | C45: 带观察塞 | D45: 600*600-12 R75 | E45: 8 | F45: 件
A46: 44 | B46: 平置式检修盖 | C46: ---- | D46: B1 1000*600-12 R100 | E46: 2 | F46: 件
A47: 45 | B47: 平置式检修盖 | C47: ---- | D47: B1 1500*1350-12 R100 | E47: 2 | F47: 件
A48: 46 | B48: 导向眼板盖 | C48: ---- | D48: 970*570-12 R100 | E48: 1 | F48: 件
A49: 47 | B49: 挂图图框 | C49: 柚木 | D49: 外框尺寸：LXB=1265X917 | E49: 2 | F49: 套
A50: 48 | B50: 挂图图框 | C50: 柚木 | D50: 外框尺寸：LXB=917X670 | E50: 1 | F50: 套
A51: 49 | B51: 挂图图框 | C51: 柚木 | D51: 外框尺寸：LXB=670X496 | E51: 1 | F51: 套
A52: 50 | B52: 挂图图框 | C52: 柚木 | D52: 外框尺寸：LXB=670X496 | E52: 1 | F52: 套
A53: 51 | B53: 挂图图框 | C53: 柚木 | D53: 外框尺寸：LXB=286X373 | E53: 1 | F53: 套
A54: 52 | B54: 挂图图框 | C54: 柚木 | D54: 外框尺寸：LXB=1086X670 | E54: 1 | F54: 套
A55: 53 | B55: 挂图图框 | C55: 柚木 | D55: 外框尺寸：LXB=1086X670 | E55: 1 | F55: 套
A56: 54 | B56: 挂图图框 | C56: 柚木 | D56: 外框尺寸：LXB=1086X670 | E56: 1 | F56: 套
A57: 55 | B57: 轮胎 | E57: 34 | F57: 个
A58: 56 | B58: 呼吸空压机 | C58: ---- | E58: 1 | F58: 个
A59: 57 | B59: 消防箱 | C59: ---- | D59: Cb-1 | E59: 9 | F59: 个
A60: 58 | B60: 水龙带 | C60: ---- | D60: 15M | E60: 20 | F60: 个
A61: 59 | B61: 灭火器支架 | C61: ---- | E61: 10 | F61: 个
A62: 60 | B62: 训练专用箱 | C62: ---- | E62: 1 | F62: 个
A63: 61 | B63: 浮灯 | C63: ---- | E63: 8 | F63: 个
A64: 62 | B64: 救生衣灯 | C64: ---- | E64: 89 | F64: 个
A65: 63 | B65: 紧急逃生呼吸装置 | C65: ---- | E65: 5 | F65: 个
A66: 64 | B66: 水龙带头 | C66: ---- | D66: QLD50AJ/12E16070328 | E66: 3 | F66: 个
A67: 65 | B67: 水龙带存放箱 | C67: ---- | E67: 6 | F67: 个
A68: 66 | B68: 担架 | C68: ---- | E68: 1 | F68: 个
A69: 67 | B69: 担存放箱 | C69: ---- | E69: 1 | F69: 个
A70: 68 | B70: 救生存放箱 | C70: ---- | E70: 1 | F70: 个
A71: 69 | B71: 灭火器 | C71: ---- | D71: EEC-5E1 | E71: 3 | F71: 个
A72: 70 | B72: 水龙带 | C72: ---- | D72: 15M | E72: 3 | F72: 个
A73: 71 | B73: 组合信号 | C73: ---- | E73: 2 | F73: 个
A74: 72 | B74: 气瓶 | C74: ---- | D74: 6L | E74: 1 | F74: 个
A75: 73 | B75: 手提泡沫箱 | C75: ---- | E75: 1 | F75: 个
A76: 74 | B76: 正压式消防空气呼吸器 | C76: ---- | E76: 10 | F76: 个
A77: 75 | B77: 存放箱 | C77: ---- | E77: 1 | F77: 个
A78: 76 | B78: PG系统泵 | C78: ---- | E78: 1 | F78: 个
A79: 77 | B79: 水泥空压机 | C79: ---- | E79: 1 | F79: 个
A80: 78 | B80: 泥浆空压机 | C80: ---- | E80: 2 | F80: 个
A81: 79 | B81: 甲醇泵本体 | C81: ---- | E81: 1 | F81: 个
A82: 80 | B82: 泥浆系统干燥器 | C82: ---- | E82: 2 | F82: 个
A83: 81 | B83: 泥浆海水清洗泵 | C83: ---- | E83: 1 | F83: 个
A84: 82 | B84: 泥浆清洗水循环泵 | C84: ---- | E84: 1 | F84: 个
A85: 83 | B85: 泥浆泵 | C85: ---- | E85: 4 | F85: 个
A86: 84 | B86: 海底阀 | C86: ---- | E86: 2 | F86: 个
A87: 85 | B87: V-SAT | C87: ---- | D87: 船东自供 | E87: 1 | F87: 个
A88: 86 | B88: 海底阀 | E88: 1 | F88: 个
A89: 87 | B89: 污水处理 | C89: ---- | E89: 1 | F89: 个
A90: 88 | B90: 阀门遥控系统 | C90: ---- | D90: 电动执行器 | E90: 1 | F90: 个
A91: 89 | B91: 板冷系统 | C91: ---- | D91: 板冷板片 | E91: 1 | F91: 个
A92: 90 | B92: 板冷系统 | C92: ---- | D92: 板式冷却器(巨元) | E92: 4 | F92: 个
A93: 91 | B93: 遥控阀 | C93: ---- | D93: 10050 双头 | E93: 1 | F93: 个
A94: 92 | B94: 遥控阀 | C94: ---- | D94: 10150 单头 | E94: 1 | F94: 个
A95: 93 | B95: 遥控阀 | C95: ---- | D95: 10200 双头 | E95: 1 | F95: 个
A96: 94 | B96: 遥控阀 | C96: ---- | D96: 10250 单头 | E96: 1 | F96: 个
A97: 95 | B97: V-SAT | C97: ---- | D97: 船东自供 | E97: 1 | F97: 个
A98: 96 | B98: 救生艇 | C98: ---- | E98: 2 | F98: 个
A99: 97 | B99: 变压器 | C99: ---- | D99: CSGD-35 | E99: 1 | F99: 个
A100: 98 | B100: 变压器 | C100: ---- | D100: CSD-100 | E100: 2 | F100: 个
A101: 99 | B101: 拖曳绞车 | C101: ---- | E101: 2 | F101: 台
A102: 100 | B102: 拖曳绞车 | C102: ---- | E102: 1 | F102: 台
A103: 101 | B103: 防爆风机控制箱 | C103: ---- | D103: YSBKX-32C | E103: 2 | F103: 个
A104: 102 | B104: 风机 | C104: ---- | D104: CXA-200DII | E104: 1 | F104: 台
A105: 103 | B105: 风机 | C105: ---- | D105: MPV 315 A1K | E105: 1 | F105: 台
A106: 104 | B106: 风机 | C106: ---- | D106: MPV 400A1K | E106: 1 | F106: 台
A107: 105 | B107: 风机 | C107: ---- | D107: MPV 450A1K | E107: 3 | F107: 台
A108: 106 | B108: 拖曳绞车操控台 | C108: ---- | E108: 1 | F108: 个
A109: 107 | B109: UPS | C109: ---- | E109: 3 | F109: 个
A110: 108 | B110: 锚 | C110: ---- | D110: 7T | E110: 3 | F110: 个
A111: 109 | B111: 固定钢质门百叶窗 | C111: ---- | D111: 1250*900 | E111: 1 | F111: 个
A112: 110 | B112: 气动百叶窗 | C112: ---- | D112: 900*900 | E112: 7 | F112: 个
A113: 111 | B113: 遥控阀 | E113: 6 | F113: 个
A114: 112 | B114: 空调制冷剂回收瓶 | D114: ---- | E114: 70 | F114: 个
A115: 113 | B115: 防火风闸 | D115: ---- | E115: 10 | F115: 个
A116: 114 | B116: 布风器 | C116: 150/100 | D116: ---- | E116: 6 | F116: 个
A117: 115 | B117: 导缆孔 | C117: A12 | D117: ---- | E117: 6 | F117: 个
A118: 116 | B118: 鹅颈通风筒 | C118: AB-200 H=900 | D118: ---- | E118: 3 | F118: 个
A119: 117 | B119: 人孔盖底座 | C119: D 600*400-10 | D119: ---- | E119: 2 | F119: 个
A120: 118 | B120: 中空隔音窗 | C120: 935*988*518 | D120: ---- | E120: 2 | F120: 个
A121: 119 | B121: 中空隔音窗 | C121: WH-1200*700*R100-19 | D121: ---- | E121: 2 | F121: 个
A122: 120 | B122: 中空隔音窗 | D122: ---- | E122: 1 | F122: 个
A123: 121 | B123: 鹅颈通风筒 | C123: AB400 H=900 | D123: ---- | E123: 1 | F123: 个
A124: 122 | B124: 鹅颈通风筒 | C124: AB500 H=900 | D124: ---- | E124: 4 | F124: 个
A125: 123 | B125: 鹅颈通风筒 | C125: CA600*550 H=900 | D125: ---- | E125: 8 | F125: 个
A126: 124 | B126: 人孔盖底座 | C126: A 800*600-25 | D126: ---- | E126: 10 | F126: 个
A127: 125 | B127: 人孔盖盖板 | C127: B 1550*700-25 | D127: ---- | E127: 4 | F127: 个
A128: 126 | B128: 人孔盖底座 | C128: D 500*700-25 | D128: ---- | E128: 1 | F128: 个
A129: 127 | B129: 鹅颈通风筒 | C129: CB400-460*290-10 | D129: ---- | E129: 4 | F129: 个
A130: 128 | B130: 船用挡火风闸 | C130: ∮160 | D130: ---- | E130: 3 | F130: 个
A131: 129 | B131: 船用挡火风闸 | C131: ∮200 | D131: ---- | E131: 1 | F131: 个
A132: 130 | B132: 船用挡火风闸 | C132: 360*260 | D132: ---- | E132: 1 | F132: 个
A133: 131 | B133: 船用挡火风闸 | C133: 400*200 | D133: ---- | E133: 1 | F133: 个
A134: 132 | B134: 百叶窗 | C134: W 1450x1650 | D134: ---- | E134: 1 | F134: 个
A135: 133 | B135: 百叶窗 | C135: W 1650x1650 | D135: ---- | E135: 1 | F135: 个
A136: 134 | B136: 菌型通风筒 | C136: C400 | D136: ---- | E136: 1 | F136: 个
A137: 135 | B137: 调风门 | C137: 400x200 | D137: ---- | E137: 1 | F137: 个
A138: 136 | B138: 调风门 | C138: 600x350 | D138: ---- | E138: 2 | F138: 个
A139: 137 | B139: 调风门 | C139: 400x400 | D139: ---- | E139: 1 | F139: 个
A140: 138 | B140: 消音器 | C140: 380x280 | D140: ---- | E140: 2 | F140: 个
A141: 139 | B141: 带缆桩 | C141: SWL370KN | D141: ---- | E141: 2 | F141: 个
A142: 140 | B142: 带缆桩 | C142: SWL480KN | D142: ---- | E142: 1 | F142: 个
A143: 141 | B143: 插闩弃锚器 | C143: A36 | D143: ---- | E143: 2 | F143: 个
A144: 142 | B144: 风雨密盖水密百叶窗 | C144: 400x500-R | D144: ---- | E144: 1 | F144: 个
A145: 143 | B145: 钢质门 | C145: 2000x2050-8 | D145: ---- | E145: 4 | F145: 个
A146: 144 | B146: 铝制风暴盖 | C146: 规格数量无法清点 | D146: ---- | E146: 3 | F146: 个
A147: 145 | B147: 人孔盖盖板（双眼） | C147: 600x400-12 | D147: ---- | E147: 22 | F147: 个
A148: 146 | B148: 锚链舱人孔盖底座 | C148: EA600X12-12 | D148: ---- | E148: 3 | F148: 个
A149: 147 | B149: 带缆桩 | C149: SWL150KN | D149: ---- | E149: 10 | F149: 个
A150: 148 | B150: 人孔盖盖板 | D150: ---- | E150: 14 | F150: 个
A151: 149 | B151: 人孔盖 | C151: AA600X400-12 | D151: ---- | E151: 7 | F151: 个
A152: 150 | B152: 通舱件+通风附件 | C152: 规格型号无法清点 | D152: ---- | E152: 5 | F152: 个
A153: 151 | B153: 钢丝绳 | C153: 规格型号无法清点 | D153: ---- | E153: 1 | F153: 个
A154: 152 | B154: 调风门 | C154: 600x400 | D154: ---- | E154: 5 | F154: 个
A155: 153 | B155: 菌型通风筒 | C155: c450 | D155: ---- | E155: 4 | F155: 个
A156: 154 | B156: 防火门 | C156: 规格无法清点 | D156: ---- | E156: 5 | F156: 个
A157: 155 | B157: 电加热玻璃 | D157: ---- | E157: 1 | F157: 个
A158: 156 | B158: 液压水密移门 | E158: 17 | F158: 套
A159: 157 | B159: DIN蝶阀法兰 | C159: Q235-B | D159: MWB36-02-2012 6350 | E159: 6 | F159: 只
A160: 158 | B160: DIN蝶阀法兰 | C160: Q235-B | D160: MWB36-02-2012 6350 | E160: 4 | F160: 只
A161: 159 | B161: DIN蝶阀法兰 | C161: Q235-B | D161: MWB36-02-2012 10250 | E161: 12 | F161: 片
A162: 160 | B162: DIN蝶阀法兰 | C162: Q235-B | D162: MWB36-02-2012 10250 | E162: 9 | F162: 片
A163: 161 | B163: DIN蝶阀法兰 | C163: Q235-B | D163: MWB36-02-2012 6150 | E163: 2 | F163: 片
A164: 162 | B164: DIN蝶阀法兰 | C164: Q235-B | D164: MWB36-02-2012 6065 | E164: 27 | F164: 片
A165: 163 | B165: DIN蝶阀法兰 | C165: Q235-B | D165: MWB36-02-2012 6065 | E165: 36 | F165: 片
A166: 164 | B166: DIN蝶阀法兰 | C166: Q235-B | D166: MWB36-02-2012 6065 | E166: 2 | F166: 片
A167: 165 | B167: DIN蝶阀法兰 | C167: Q235-B | D167: MWB36-02-2012 10100 | E167: 16 | F167: 片
A168: 166 | B168: DIN蝶阀法兰 | C168: Q235-B | D168: MWB36-02-2012 10100 | E168: 10 | F168: 片
A169: 167 | B169: DIN蝶阀法兰 | C169: Q235-B | D169: MWB36-02-2012 10100 | E169: 8 | F169: 片
A170: 168 | B170: DIN蝶阀法兰 | C170: Q235-B | D170: MWB36-02-2012 10100 | E170: 20 | F170: 片
A171: 169 | B171: DIN蝶阀法兰 | C171: Q235-B | D171: MWB36-02-2012 10100 | E171: 6 | F171: 片
A172: 170 | B172: DIN蝶阀法兰 | C172: Q235-B | D172: MWB36-02-2012 10125 | E172: 9 | F172: 片
A173: 171 | B173: DIN蝶阀法兰 | C173: Q235-B | D173: MWB36-02-2012 10350 | E173: 2 | F173: 只
A174: 172 | B174: DIN蝶阀法兰 | C174: Q235-B | D174: MWB36-02-2012 10350 | E174: 8 | F174: 只
A175: 173 | B175: DIN蝶阀法兰 | C175: Q235-B | D175: MWB36-02-2012 10350 | E175: 2 | F175: 只
A176: 174 | B176: DIN蝶阀法兰 | C176: Q235-B | D176: MWB36-02-2012 10350 | E176: 1 | F176: 只
A177: 175 | B177: DIN蝶阀法兰 | C177: Q235-B | D177: MWB36-02-2012 10350 | E177: 2 | F177: 只
A178: 176 | B178: DIN蝶阀法兰 | C178: Q235-B | D178: MWB36-02-2012 10350 | E178: 8 | F178: 只
A179: 177 | B179: DIN蝶阀法兰 | C179: Q235-B | D179: MWB36-02-2012 16100 | E179: 1 | F179: 片
A180: 178 | B180: DIN蝶阀法兰 | C180: Q235-B | D180: MWB36-02-2012 16125 | E180: 2 | F180: 片
A181: 179 | B181: DIN蝶阀法兰 | C181: Q235-B | D181: MWB36-02-2012 16125 | E181: 3 | F181: 片
A182: 180 | B182: DIN蝶阀法兰 | C182: Q235-B | D182: MWB36-02-2012 16300 | E182: 9 | F182: 片
A183: 181 | B183: DIN蝶阀法兰 | C183: Q235-B | D183: MWB36-02-2012 16300 | E183: 13 | F183: 片
A184: 182 | B184: DIN蝶阀法兰 | C184: Q235-B | D184: MWB36-02-2012 16300 | E184: 4 | F184: 片
A185: 183 | B185: DIN蝶阀法兰 | C185: Q235-B | D185: MWB36-02-2012 16300 | E185: 4 | F185: 片
A186: 184 | B186: DIN蝶阀法兰 | C186: Q235-B | D186: MWB36-02-2012 16300 | E186: 4 | F186: 片
A187: 185 | B187: DIN蝶阀法兰 | C187: Q235-B | D187: MWB36-02-2012 16300 | E187: 8 | F187: 片
A188: 186 | B188: DIN蝶阀法兰 | C188: Q235-B | D188: MWB36-02-2012 16300 | E188: 2 | F188: 片
A189: 187 | B189: DIN蝶阀法兰 | C189: Q235-B | D189: MWB36-02-2012 16300 | E189: 2 | F189: 片
A190: 188 | B190: DIN蝶阀法兰 | C190: Q235-B | D190: MWB36-02-2012 6200 | E190: 10 | F190: 片
A191: 189 | B191: DIN蝶阀法兰 | C191: Q235-B | D191: MWB36-02-2012 10500 | E191: 1 | F191: 只
A192: 190 | B192: JIS蝶阀法兰 | C192: Q235-B | D192: JIS B2220-2012 5080 | E192: 1 | F192: 片
A193: 191 | B193: JIS蝶阀法兰 | C193: 钢25 | D193: 10150 MWB36-03-2013 | E193: 7 | F193: 片
A194: 192 | B194: JIS蝶阀法兰 | C194: 钢25 | D194: 10250 MWB36-03-2013 | E194: 7 | F194: 片
A195: 193 | B195: JIS蝶阀法兰 | C195: Q235-B | D195: JIS B2220-2012 10350 | E195: 4 | F195: 片
A196: 194 | B196: JIS蝶阀法兰 | C196: Q235-B | D196: JIS B2220-2012 10350 | E196: 8 | F196: 片
A197: 195 | B197: JIS蝶阀法兰 | C197: Q235-B | D197: JIS B2220-2012 10450 | E197: 2 | F197: 片
A198: 196 | B198: JIS蝶阀法兰 | C198: Q235-B | D198: JIS B2220-2012 10450 | E198: 4 | F198: 片
A199: 197 | B199: JIS蝶阀法兰 | C199: Q235-B | D199: JIS B2220-2012 10450 | E199: 4 | F199: 片
A200: 198 | B200: JIS蝶阀法兰 | C200: Q235-B | D200: JIS B2220-2012 10250 | E200: 2 | F200: 片
... 2059 more rows

Sheet 马尾事业部盘盈物资汇总表 (hidden)
A1: 马尾事业部盘盈物资汇总表
A2: 序号 | B2: 工程编号 | C2: 物资名称 | D2: 物资型号 | E2: 物资规格 | F2: 原币金额（部分为参照预估值） | G2: 系统金额 | H2: 折合价 | I2: 入库时间 | J2: 仓管员 | K2: 当前库存数量 | L2: 有/无账 | M2: 是否进口设备 | N2: 专业分工核实 | O2: 设计勘察情况
A3: 1 | B3: / | C3: 干粉 | D3: ---- | E3: 6KG | F3: 259.29217 | G3: =F3*K3 -> 8297.34944 | H3: =G3*0.7 -> 5808.14 | I3: ---- | J3: 何龙燕 | K3: 32 | L3: 无 | M3: 否 | N3: 船装 | O3: 无法利用，过期
A4: 2 | B4: / | C4: 锌块 | D4: ---- | F4: 500元/个 | G4: 10000 | H4: =G4*0.8 -> 8000.00 | I4: ---- | J4: 叶珺 | K4: 20 | L4: 无 | M4: 否 | N4: 船装 | O4: 如果建造自用的船可以用到，其余无法使用
A5: 3 | B5: 636-1 | C5: 锌块 | D5: ---- | F5: 1093.75元/个 | G5: 35000 | H5: =G5*0.8 -> 28000.00 | I5: ---- | J5: 叶珺 | K5: 32 | L5: 无 | M5: 否 | N5: 船装 | O5: 如果建造自用的船可以用到，其余无法使用
A6: 4 | B6: 907-1 | C6: 齐平式水密盖 | D6: ---- | E6: 600*800-8*400*100-10 | F6: 3000元/个 | G6: 6000 | H6: =G6*0.7 -> 4200.00 | I6: ---- | J6: 吴铸玉 | K6: 2 | L6: 无 | M6: 否 | N6: 船装 | O6: 具备锈蚀，近期无项目可利用
A7: 5 | B7: MW715-1 | C7: 轮胎 | F7: 318.58元/个 | G7: =318.58*K7 -> 10831.72 | H7: 7582.20 | I7: ---- | J7: 何龙燕 | K7: 34 | L7: 无 | M7: 否 | N7: 船装 | O7: 近期无法利用
A8: 6 | B8: / | C8: 消防箱 | D8: ---- | E8: Cb-1 | F8: 1168元/个 | G8: =1168*K8 -> 10512 | H8: 7358.40 | I8: ---- | J8: 何龙燕 | K8: 9 | L8: 无 | M8: 否 | N8: 船装 | O8: 无法利用，过期老化
A9: 7 | B9: / | C9: 水龙带 | D9: ---- | E9: 15M | F9: 280元/个 | G9: 5600 | H9: 3920.00 | I9: ---- | J9: 何龙燕 | K9: 20 | L9: 无 | M9: 否 | N9: 船装 | O9: 无法利用，过期老化
A10: 8 | B10: / | C10: 灭火器支架 | D10: ---- | F10: 198元/个 | G10: 1980 | H10: 1386.00 | I10: ---- | J10: 何龙燕 | K10: 10 | L10: 无 | M10: 否 | N10: 船装 | O10: 无法利用，过期老化
A11: 9 | B11: / | C11: 浮灯 | D11: ---- | F11: 35.3975元/个 | G11: 283.2 | H11: 198.24 | I11: ---- | J11: 何龙燕 | K11: 8 | L11: 无 | M11: 否 | N11: 船装 | O11: 无法利用，过期老化
A12: 10 | B12: / | C12: 救生衣灯 | D12: ---- | F12: 22.123833元/个 | G12: 1969.9 | H12: 1378.93 | I12: ---- | J12: 何龙燕 | K12: 89 | L12: 无 | M12: 否 | N12: 船装 | O12: 无法利用，过期老化
A13: 11 | B13: / | C13: 紧急逃生呼吸装置 | D13: ---- | F13: 780元/个 | G13: 3900 | H13: 2730.00 | I13: ---- | J13: 何龙燕 | K13: 5 | L13: 无 | M13: 否 | N13: 船装 | O13: 无法利用，过期老化
A14: 12 | B14: / | C14: 水龙带头 | D14: ---- | E14: QLD50AJ/12E16070328 | F14: 198元/个 | G14: 594 | H14: 415.80 | I14: ---- | J14: 何龙燕 | K14: 3 | L14: 无 | M14: 否 | N14: 船装 | O14: 无法利用，过期老化
A15: 13 | B15: / | C15: 水龙带存放箱 | D15: ---- | F15: 780元/个 | G15: 4680 | H15: 3276.00 | I15: ---- | J15: 何龙燕 | K15: 6 | L15: 无 | M15: 否 | N15: 船装 | O15: 无法利用，过期老化
A16: 14 | B16: / | C16: 担架 | D16: ---- | F16: 280元/个 | G16: 280 | H16: 196.00 | I16: ---- | J16: 何龙燕 | K16: 1 | L16: 无 | M16: 否 | N16: 船装 | O16: 无法利用，过期老化
A17: 15 | B17: / | C17: 担存放箱 | D17: ---- | F17: 280元/个 | G17: 280 | H17: 196.00 | I17: ---- | J17: 何龙燕 | K17: 1 | L17: 无 | M17: 否 | N17: 船装 | O17: 无法利用，过期老化
A18: 16 | B18: / | C18: 救生存放箱 | D18: ---- | F18: 780元/个 | G18: 780 | H18: 546.00 | I18: ---- | J18: 何龙燕 | K18: 1 | L18: 无 | M18: 否 | N18: 船装 | O18: 无法利用，过期老化
A19: 17 | B19: / | C19: 灭火器 | D19: ---- | E19: EEC-5E1 | F19: 350元/个 | G19: =350*3 -> 1050 | H19: 735.00 | I19: ---- | J19: 何龙燕 | K19: 3 | L19: 无 | M19: 否 | N19: 船装 | O19: 无法利用，过期老化
A20: 18 | B20: / | C20: 水龙带 | D20: ---- | E20: 15M | F20: 619.46933元/个 | G20: 1858.5 | H20: 1300.95 | I20: ---- | J20: 何龙燕 | K20: 3 | L20: 无 | M20: 否 | N20: 船装 | O20: 无法利用，过期老化
A21: 19 | B21: / | C21: 组合信号 | D21: ---- | F21: 106.195元/个 | G21: 212.39 | H21: 148.67 | I21: ---- | J21: 何龙燕 | K21: 2 | L21: 无 | M21: 否 | N21: 船装 | O21: 无法利用，过期老化
A22: 20 | B22: / | C22: 手提泡沫箱 | D22: ---- | F22: 1168元/个 | G22: 1168 | H22: 817.60 | I22: ---- | J22: 何龙燕 | K22: 1 | L22: 无 | M22: 否 | N22: 船装 | O22: 无法利用，过期老化
A23: 21 | B23: / | C23: 存放箱 | D23: ---- | F23: 1168元/个 | G23: 1168 | H23: 817.60 | I23: ---- | J23: 何龙燕 | K23: 1 | L23: 无 | M23: 否 | N23: 船装 | O23: 无法利用，过期老化
A24: 22 | B24: 610-3 | C24: 阀门遥控系统 | D24: ---- | E24: 电动执行器 | F24: 2000元 | G24: 2000 | H24: 1400.00 | I24: ---- | J24: 杨琼 | K24: 1 | L24: 无 | M24: 否 | N24: 电装 | O24: 近期建造船舶无法利用
A25: 23 | B25: 626-1 | C25: 救生艇 | D25: ---- | F25: 299145.3元/艘 | G25: 598290.6 | H25: 418803.42 | I25: 2016.3.16 | J25: 陈金伟 | K25: 2 | L25: 无 | M25: 否 | N25: 船装 | O25: 无法利用，内部物品过期，老化
A26: 24 | B26: 633-2 | C26: 变压器 | D26: ---- | E26: CSGD-35 | F26: 5000元/个 | G26: 5000 | H26: =G26*0.8 -> 4000.00 | I26: ---- | J26: 陈金伟 | K26: 1 | L26: 无 | M26: 否 | N26: 电装 | O26: 近期建造船舶无法利用
A27: 25 | B27: / | C27: 风机 | D27: ---- | E27: CXA-200DII | F27: 1030元/只 | G27: 1030 | H27: =G27*0.8 -> 824.00 | I27: ---- | J27: 陈金伟 | K27: 1 | L27: 无 | M27: 否 | N27: 机装 | O27: 船上退库设备、需确认是否可正常工作
A28: 26 | B28: / | C28: 风机 | D28: ---- | E28: MPV 315 A1K | F28: 2700元/只 | G28: 2700 | H28: =G28*0.8 -> 2160.00 | I28: ---- | J28: 陈金伟 | K28: 1 | L28: 无 | M28: 否 | N28: 机装 | O28: 船上退库设备、需确认是否可正常工作
A29: 27 | B29: / | C29: 风机 | D29: ---- | E29: MPV 400A1K | F29: 5000元/只 | G29: 5000 | H29: =G29*0.8 -> 4000.00 | I29: ---- | J29: 陈金伟 | K29: 1 | L29: 无 | M29: 否 | N29: 机装 | O29: 船上退库设备、需确认是否可正常工作
A30: 28 | B30: / | C30: 风机 | D30: ---- | E30: MPV 450A1K | F30: 6000元/只 | G30: 18000 | H30: =G30*0.8 -> 14400.00 | I30: ---- | J30: 陈金伟 | K30: 3 | L30: 无 | M30: 否 | N30: 机装 | O30: 船上退库设备、需确认是否可正常工作
A31: 29 | B31: / | C31: UPS | D31: ---- | F31: 7952元/个 | G31: 23856 | H31: 16699.20 | I31: ---- | J31: 顾碧钗 | K31: 3 | L31: 无 | M31: 否 | N31: 电气 | O31: 生产时间未知，规格未知，无法判断是否可用。如存放超过一年以上，期间未充放电，内部蓄电池应该是失效了。
A32: 30 | B32: 715-1 | C32: 锚 | D32: ---- | E32: 7T | F32: 66382.5元/只 | G32: =3*66382.5 -> 199147.5 | H32: 139403.25 | I32: ---- | J32: 吴铸玉 | K32: 3 | L32: 无 | M32: 否 | N32: 船装 | O32: 近期无项目可利用
A33: 31 | B33: 619CD-6 | C33: 固定钢质门百叶窗 | D33: ---- | E33: 1250*900 | F33: 2000元 | G33: 2463 | H33: 1724.10 | I33: ---- | J33: 吴铸玉 | K33: 1 | L33: 无 | M33: 否 | N33: 机装 | O33: 近期无项目可利用
A34: 32 | B34: / | C34: 气动百叶窗 | D34: ---- | E34: 900*900 | F34: 1650元/个 | G34: 11550 | H34: 8085.00 | I34: ---- | J34: 吴铸玉 | K34: 7 | L34: 无 | M34: 否 | N34: 机装 | O34: 近期无项目可利用
A35: 33 | B35: / | C35: 防火风闸 | E35: ---- | F35: 4292.04元 | G35: 42920.4 | H35: 30044.28 | I35: ---- | J35: 吴铸玉 | K35: 10 | L35: 无 | M35: 否 | N35: 船装 | O35: 无法利用，过期老化
A36: 34 | B36: 507-1/2 | C36: 布风器 | D36: 150/100 | E36: ---- | F36: 427.35元 | G36: 2564.1 | H36: =G36*0.7 -> 1794.87 | I36: ---- | J36: 吴铸玉 | K36: 6 | L36: 无 | N36: 船装 | O36: 无法利用，过期老化
A37: 35 | B37: 439系列 | C37: 导缆孔 | D37: A12 | E37: ---- | F37: 1538.46元 | G37: 9230.76 | H37: 6461.53 | I37: ---- | J37: 吴铸玉 | K37: 6 | L37: 无 | N37: 船装 | O37: 无法利用，过期老化
A38: 36 | B38: 619CD-6 | C38: 鹅颈通风筒 | D38: AB-200 H=900 | E38: ---- | F38: 769.23 | G38: =F38*K38 -> 2307.69 | H38: 1615.38 | I38: ---- | J38: 吴铸玉 | K38: 3 | L38: 无 | N38: 船装 | O38: 无法利用，过期老化
A39: 37 | B39: 905-1 | C39: 人孔盖底座 | D39: D 600*400-10 | E39: ---- | F39: 1468元 | G39: 1468 | H39: 1027.60 | I39: ---- | J39: 吴铸玉 | K39: 2 | L39: 无 | N39: 船装 | O39: 无法利用，过期老化
A40: 38 | B40: 库存 | C40: 中空隔音窗 | D40: 935*988*518 | E40: ---- | F40: 11000元 | G40: 11000 | H40: 7700.00 | I40: ---- | J40: 吴铸玉 | K40: 2 | L40: 无 | N40: 船装 | O40: 无法利用，过期老化
A41: 39 | B41: 508-1 | C41: 中空隔音窗 | D41: WH-1200*700*R100-19 | E41: ---- | F41: 12388元 | G41: 12388 | H41: 8671.60 | I41: ---- | J41: 吴铸玉 | K41: 2 | L41: 无 | N41: 船装 | O41: 无法利用，过期老化
A42: 40 | B42: 818-1 | C42: 中空隔音窗 | E42: ---- | F42: 2654元 | G42: 2654 | H42: 1857.80 | I42: ---- | J42: 吴铸玉 | K42: 1 | L42: 无 | N42: 船装 | O42: 无法利用，过期老化
A43: 41 | B43: 507系列 | C43: 鹅颈通风筒 | D43: AB400 H=900 | E43: ---- | F43: 1705元 | G43: 1705 | H43: 1193.50 | I43: ---- | J43: 吴铸玉 | K43: 1 | L43: 无 | N43: 船装 | O43: 无法利用，过期老化
A44: 42 | B44: 507系列 | C44: 鹅颈通风筒 | D44: AB500 H=900 | E44: ---- | F44: 2435元 | G44: 2435 | H44: 1704.50 | I44: ---- | J44: 吴铸玉 | K44: 4 | L44: 无 | N44: 船装 | O44: 无法利用，过期老化
A45: 43 | B45: 507系列 | C45: 鹅颈通风筒 | D45: CA600*550 H=900 | E45: ---- | F45: 22994元 | G45: 22994 | H45: 16095.80 | I45: ---- | J45: 吴铸玉 | K45: 8 | L45: 无 | N45: 船装 | O45: 无法利用，过期老化
A46: 44 | B46: 集配退 | C46: 人孔盖底座 | D46: D 500*700-25 | E46: ---- | F46: 4276元 | G46: 4276 | H46: 2993.20 | I46: ---- | J46: 吴铸玉 | K46: 1 | L46: 无 | N46: 船装 | O46: 无法利用，过期老化
A47: 45 | B47: 513-2 | C47: 鹅颈通风筒 | D47: CB400-460*290-10 | E47: ---- | F47: 9230元 | G47: 9230 | H47: 6461.00 | I47: ---- | J47: 吴铸玉 | K47: 4 | L47: 无 | N47: 船装 | O47: 无法利用，过期老化
A48: 46 | B48: 库存 | C48: 船用挡火风闸 | D48: ∮160 | E48: ---- | F48: 7752元 | G48: 7752 | H48: 5426.40 | I48: ---- | J48: 吴铸玉 | K48: 3 | L48: 无 | N48: 船装 | O48: 无法利用，过期老化
A49: 47 | B49: 库存 | C49: 船用挡火风闸 | D49: ∮200 | E49: ---- | F49: 822元 | G49: 822 | H49: 575.40 | I49: ---- | J49: 吴铸玉 | K49: 1 | L49: 无 | N49: 船装 | O49: 无法利用，过期老化
A50: 48 | B50: 库存 | C50: 船用挡火风闸 | D50: 360*260 | E50: ---- | F50: 823元 | G50: 823 | H50: 576.10 | I50: ---- | J50: 吴铸玉 | K50: 1 | L50: 无 | N50: 船装 | O50: 无法利用，过期老化
A51: 49 | B51: 库存 | C51: 船用挡火风闸 | D51: 400*200 | E51: ---- | F51: 850元 | G51: 850 | H51: 595.00 | I51: ---- | J51: 吴铸玉 | K51: 1 | L51: 无 | N51: 船装 | O51: 无法利用，过期老化
A52: 50 | B52: 利亚调拨 | C52: 百叶窗 | D52: W 1450x1650 | E52: ---- | F52: 9292元 | G52: 9292 | H52: 6504.40 | I52: ---- | J52: 吴铸玉 | K52: 1 | L52: 无 | N52: 船装 | O52: 无法利用，过期老化
A53: 51 | B53: 利亚调拨 | C53: 百叶窗 | D53: W 1650x1650 | E53: ---- | F53: 5811元 | G53: 5811 | H53: 4067.70 | I53: ---- | J53: 吴铸玉 | K53: 1 | L53: 无 | N53: 船装 | O53: 无法利用，过期老化
A54: 52 | B54: 利亚调拨 | C54: 菌型通风筒 | D54: C400 | E54: ---- | F54: 2482元 | G54: 2482 | H54: 1737.40 | I54: ---- | J54: 吴铸玉 | K54: 1 | L54: 无 | N54: 船装 | O54: 无法利用，过期老化
A55: 53 | B55: 利亚调拨 | C55: 调风门 | D55: 400x200 | E55: ---- | F55: 324.78元 | G55: 324.78 | H55: 227.35 | I55: ---- | J55: 吴铸玉 | K55: 1 | L55: 无 | N55: 船装 | O55: 无法利用，过期老化
A56: 54 | B56: 利亚调拨 | C56: 调风门 | D56: 600x350 | E56: ---- | F56: 491元 | G56: 491 | H56: 343.70 | I56: ---- | J56: 吴铸玉 | K56: 2 | L56: 无 | N56: 船装 | O56: 无法利用，过期老化
A57: 55 | B57: 利亚调拨 | C57: 调风门 | D57: 400x400 | E57: ---- | F57: 470元 | G57: 470 | H57: 329.00 | I57: ---- | J57: 吴铸玉 | K57: 1 | L57: 无 | N57: 船装 | O57: 无法利用，过期老化
A58: 56 | B58: 619CD-6 | C58: 风雨密盖水密百叶窗 | D58: 400x500-R | E58: ---- | F58: 586元 | G58: 586 | H58: 410.20 | I58: ---- | J58: 吴铸玉 | K58: 1 | L58: 无 | N58: 船装 | O58: 无法利用，过期老化
A59: 57 | B59: 628-6 | C59: 人孔盖盖板（双眼） | D59: 600x400-12 | E59: ---- | F59: 681元 | G59: 681 | H59: 476.70 | I59: ---- | J59: 吴铸玉 | K59: 22 | L59: 无 | N59: 船装 | O59: 无法利用，过期老化
A60: 58 | B60: 513 | C60: 人孔盖 | D60: AA600X400-12 | E60: ---- | F60: 858.41 | G60: 858.41 | H60: 600.89 | I60: ---- | J60: 吴铸玉 | K60: 7 | L60: 无 | N60: 船装 | O60: 无法利用，过期老化
A61: 59 | B61: 439系列 | C61: 调风门 | D61: 600x400 | E61: ---- | F61: 487.18元 | G61: 487.18 | H61: 341.03 | I61: ---- | J61: 吴铸玉 | K61: 5 | L61: 无 | N61: 船装 | O61: 无法利用，过期老化
A62: 60 | B62: 301-1 | C62: 菌型通风筒 | D62: c450 | E62: ---- | F62: 1837.6元 | G62: 1837.6 | H62: 1286.32 | I62: ---- | J62: 吴铸玉 | K62: 4 | L62: 无 | N62: 船装 | O62: 无法利用，过期老化
A63: 61 | B63: 619CD-7 | C63: 防火门 | D63: 规格无法清点 | E63: ---- | F63: 10615元 | G63: 10615 | H63: 7430.50 | I63: ---- | J63: 吴铸玉 | K63: 5 | L63: 无 | N63: 船装 | O63: 无法利用，过期老化
A64: 62 | G64: =SUM(G3:G63) -> 1144838.079 | H64: =SUM(H3:H63) -> 809,059.66

Sheet 东南事业部盘盈物资汇总表 (hidden)
A1: 东南事业部盘盈物资汇总表
A2: 序号 | B2: 工程编号 | C2: 物资名称 | D2: 物资型号 | E2: 物资规格 | F2: 原币金额（部分为参照预估值） | G2: 系统金额（元） 部分无法查询 | H2: 入库时间 | I2: 仓管员 | J2: 当前库存数量 | K2: 有/无账 | L2: 是否进口设备 | M2: 设计勘察情况 | N2: 利库与否
A3: 1 | B3: 640-2 | C3: 驾驶室固定矩形窗 | E3: WN-(630/575)*1100 | F3: 948.28 | G3: 948.28 | I3: 张桂龙 | J3: 1 | K3: 无 | L3: 否 | M3: 破损老化，无法利用 | N3: 否
A4: 2 | B4: 640-2 | C4: 驾驶室固定矩形窗 | D4: ---- | E4: WN-(630/575)*1100 | F4: 948.28 | G4: 948.28 | I4: 张桂龙 | J4: 1 | K4: 无 | L4: 否 | M4: 破损老化，无法利用 | N4: 否
A5: 3 | B5: 640-2 | C5: 驾驶室固定矩形窗 | D5: ---- | E5: WN-(1050/999)*1100 | F5: 1,724.14 | G5: 1,724.14 | I5: 张桂龙 | J5: 1 | K5: 无 | L5: 否 | M5: 破损老化，无法利用 | N5: 否
A6: 4 | B6: 640-2 | C6: 驾驶室固定矩形窗 | D6: ---- | E6: WN-(1100/903)*1100 | F6: 1,724.14 | G6: 1,724.14 | I6: 张桂龙 | J6: 1 | K6: 无 | L6: 否 | M6: 破损老化，无法利用 | N6: 否
A7: 5 | B7: 640-2 | C7: 驾驶室固定矩形窗 | D7: ---- | E7: WN-(1100/903)*1100 | F7: 1,724.14 | G7: 1,724.14 | I7: 张桂龙 | J7: 1 | K7: 无 | L7: 否 | M7: 破损老化，无法利用 | N7: 否
A8: 6 | B8: 640-2 | C8: 驾驶室固定矩形窗 | D8: ---- | E8: WN-900*1100 | F8: 1,551.72 | G8: 1,551.72 | I8: 张桂龙 | J8: 1 | K8: 无 | L8: 否 | M8: 破损老化，无法利用 | N8: 否
A9: 7 | B9: 640-2 | C9: 驾驶室固定矩形窗 | D9: ---- | E9: WN-900*1100 | F9: 1,551.72 | G9: 4,655.17 | I9: 张桂龙 | J9: 3 | K9: 无 | L9: 否 | M9: 破损老化，无法利用 | N9: 否
A10: 8 | B10: 640-2 | C10: 驾驶室固定矩形窗 | D10: ---- | E10: WN-800*1060 | F10: 1,379.31 | G10: 1,379.31 | I10: 张桂龙 | J10: 1 | K10: 无 | L10: 否 | M10: 破损老化，无法利用 | N10: 否
A11: 9 | B11: 640-2 | C11: 驾驶室固定矩形窗 | D11: ---- | E11: WN-800*1060 | F11: 1,379.31 | G11: 2,758.62 | I11: 张桂龙 | J11: 2 | K11: 无 | L11: 否 | M11: 破损老化，无法利用 | N11: 否
A12: 10 | B12: 640-2 | C12: 驾驶室固定矩形窗 | D12: ---- | E12: WN-(949/748)*1100 | F12: 1,465.52 | G12: 1,465.52 | I12: 张桂龙 | J12: 1 | K12: 无 | L12: 否 | M12: 破损老化，无法利用 | N12: 否
A13: 11 | B13: 640-2 | C13: 驾驶室固定矩形窗 | D13: ---- | E13: WN-(949/748)*1100 | F13: 1,465.52 | G13: 1,465.52 | I13: 张桂龙 | J13: 1 | K13: 无 | L13: 否 | M13: 破损老化，无法利用 | N13: 否
A14: 12 | B14: 640-2 | C14: 驾驶室固定矩形窗 | D14: ---- | E14: WN-600*1100 | F14: 948.28 | G14: 948.28 | I14: 张桂龙 | J14: 1 | K14: 无 | L14: 否 | M14: 破损老化，无法利用 | N14: 否
A15: 13 | B15: 640-2 | C15: 驾驶室固定矩形窗 | D15: ---- | E15: WN-600*1100 | F15: 948.28 | G15: 948.28 | I15: 张桂龙 | J15: 1 | K15: 无 | L15: 否 | M15: 破损老化，无法利用 | N15: 否
A16: 14 | B16: 640-2 | C16: 驾驶室固定矩形窗 | D16: ---- | E16: WH-1060*1100 | F16: 4,310.34 | G16: 4,310.34 | I16: 张桂龙 | J16: 1 | K16: 无 | L16: 否 | M16: 破损老化，无法利用 | N16: 否
A17: 15 | B17: 640-2 | C17: 驾驶室固定矩形窗 | D17: ---- | E17: WH-1105*1100 | F17: 4,482.76 | G17: 4,482.76 | I17: 张桂龙 | J17: 1 | K17: 无 | L17: 否 | M17: 破损老化，无法利用 | N17: 否
A18: 16 | B18: 640-2 | C18: 驾驶室固定矩形窗 | D18: ---- | E18: WH-1105*1100 | F18: 4,482.76 | G18: 4,482.76 | I18: 张桂龙 | J18: 1 | K18: 无 | L18: 否 | M18: 破损老化，无法利用 | N18: 否
A19: 17 | B19: 640-2 | C19: 船用铝合金中空玻璃隔音窗 | D19: ---- | E19: A1200*650 | F19: 1,206.90 | G19: 1,206.90 | I19: 张桂龙 | J19: 1 | K19: 无 | L19: 否 | M19: 破损老化，无法利用 | N19: 否
A20: 18 | B20: 640-2 | C20: 船用铝合金中空玻璃隔音窗 | D20: ---- | E20: A1200*650 | F20: 1,206.90 | G20: 2,413.79 | I20: 张桂龙 | J20: 2 | K20: 无 | L20: 否 | M20: 破损老化，无法利用 | N20: 否
A21: 19 | B21: 640-2 | C21: 铰链矩形窗 | D21: ---- | E21: E3*30-IRW-233-Y1 | F21: 948.2766667 | G21: 2,844.83 | I21: 张桂龙 | J21: 3 | K21: 无 | L21: 否 | M21: 破损老化，无法利用 | N21: 否
A22: 20 | B22: 640-2 | C22: 铰链矩形窗 | D22: ---- | E22: E3*30-IRW-233-Y1 | F22: 948.275 | G22: 3,793.10 | I22: 张桂龙 | J22: 4 | K22: 无 | L22: 否 | M22: 破损老化，无法利用 | N22: 否
A23: 21 | B23: 640-2 | C23: 铰链矩形窗 | D23: ---- | E23: E3*30-ILW-233-Y1 | F23: 948.2766667 | G23: 2,844.83 | I23: 张桂龙 | J23: 3 | K23: 无 | L23: 否 | M23: 破损老化，无法利用 | N23: 否
A24: 22 | B24: 640-2 | C24: 铰链矩形窗 | D24: ---- | E24: E3-IRW-233-Y1 | F24: 948.2766667 | G24: 2,844.83 | I24: 张桂龙 | J24: 3 | K24: 无 | L24: 否 | M24: 破损老化，无法利用 | N24: 否
A25: 23 | B25: 640-2 | C25: 铰链矩形窗 | D25: ---- | E25: E3-IRW-233-Y1 | F25: 948.2766667 | G25: 2,844.83 | I25: 张桂龙 | J25: 3 | K25: 无 | L25: 否 | M25: 破损老化，无法利用 | N25: 否
A26: 24 | B26: 640-2 | C26: 铰链矩形窗 | D26: ---- | E26: E3-ILW-233-Y1 | F26: 948.275 | G26: 1,896.55 | I26: 张桂龙 | J26: 2 | K26: 无 | L26: 否 | M26: 破损老化，无法利用 | N26: 否
A27: 25 | B27: 640-2 | C27: 铰链矩形窗 | D27: ---- | E27: E3-ILW-233-Y1 | F27: 948.2766667 | G27: 2,844.83 | I27: 张桂龙 | J27: 3 | K27: 无 | L27: 否 | M27: 破损老化，无法利用 | N27: 否
A28: 26 | B28: 640-2 | C28: 固定式矩形窗 | D28: ---- | E28: E3*30-NOW-203-Y1 | F28: 517.24 | G28: 1,551.72 | I28: 张桂龙 | J28: 3 | K28: 无 | L28: 否 | M28: 破损老化，无法利用 | N28: 否
A29: 27 | B29: 640-2 | C29: 固定式矩形窗 | D29: ---- | E29: E3*30-NOW-203-Y1 | F29: 517.242 | G29: 2,586.21 | I29: 张桂龙 | J29: 5 | K29: 无 | L29: 否 | M29: 破损老化，无法利用 | N29: 否
A30: 28 | B30: 640-2 | C30: 固定式矩形窗 | D30: ---- | E30: E3-NOW-203-Y1 | F30: 517.24 | G30: 517.24 | I30: 张桂龙 | J30: 1 | K30: 无 | L30: 否 | M30: 破损老化，无法利用 | N30: 否
A31: 29 | B31: 640-2 | C31: 固定式矩形窗 | E31: E3-NOW-203-Y1 | F31: 517.24 | G31: 1,034.48 | I31: 张桂龙 | J31: 2 | K31: 无 | L31: 否 | M31: 破损老化，无法利用 | N31: 否
A32: 30 | B32: 640-2 | C32: 风暴盖铰链式舷窗 | E32: N-B350-RW-233J-Y1 | F32: 2,068.97 | G32: 4,137.93 | I32: 张桂龙 | J32: 2 | K32: 无 | L32: 否 | M32: 破损老化，无法利用 | N32: 否
A33: 31 | B33: 640-2 | C33: 风暴盖铰链式舷窗 | E33: N-B350-RW-233J-Y1 | F33: 2,068.97 | G33: 8,275.86 | I33: 张桂龙 | J33: 4 | K33: 无 | L33: 否 | M33: 破损老化，无法利用 | N33: 否
A34: 32 | B34: 640-2 | C34: 船用风雨密单扇钢质门 | D34: ---- | E34: DY1750*700-6 | F34: 2,155.17 | G34: 6,465.52 | I34: 张桂龙 | J34: 3 | K34: 无 | L34: 否 | M34: 破损老化，无法利用 | N34: 否
A35: 33 | B35: 640-2 | C35: 船用风雨密单扇钢质门 | D35: ---- | E35: DY1570*700-6 | F35: 2,155.17 | G35: 10,775.86 | I35: 张桂龙 | J35: 5 | K35: 无 | L35: 否 | M35: 破损老化，无法利用 | N35: 否
A36: 34 | B36: 640-2 | C36: 船用风雨密单扇钢质门 | D36: ---- | E36: CY1350*700-6 | F36: 2,155.17 | G36: 4,310.34 | I36: 张桂龙 | J36: 2 | K36: 无 | L36: 否 | M36: 破损老化，无法利用 | N36: 否
A37: 35 | B37: 640-2 | C37: 船用风雨密单扇钢质门 | D37: ---- | E37: BY1350*700-8 | F37: 2,155.17 | G37: 23,706.90 | I37: 张桂龙 | J37: 11 | K37: 无 | L37: 否 | M37: 破损老化，无法利用 | N37: 否
A38: 36 | B38: 640-2 | C38: 快开启耐压水密钢质门 | D38: ---- | E38: 1570*600 | F38: 4,137.93 | G38: 8,275.86 | I38: 张桂龙 | J38: 2 | K38: 无 | L38: 否 | M38: 破损老化，无法利用 | N38: 否
A39: 37 | B39: 640-2 | C39: 快开启耐压水密钢质门 | E39: 1570*600 | F39: 4,741.38 | G39: 28,448.28 | I39: 张桂龙 | J39: 6 | K39: 无 | L39: 否 | M39: 破损老化，无法利用 | N39: 否
A40: 38 | B40: 640-2 | C40: 不锈钢驾驶室移门 | D40: ---- | E40: AR1900*900 | F40: 6,896.55 | G40: 6,896.55 | I40: 张桂龙 | J40: 1 | K40: 无 | L40: 否 | M40: 破损老化，无法利用 | N40: 否
A41: 39 | B41: 640-2 | C41: 不锈钢驾驶室移门 | D41: ---- | E41: AL1900*900 | F41: 6,896.55 | G41: 6,896.55 | I41: 张桂龙 | J41: 1 | K41: 无 | L41: 否 | M41: 破损老化，无法利用 | N41: 否
A42: 40 | B42: 640-2 | C42: 防火门 | D42: ---- | E42: 1570*700 | F42: 6,206.90 | G42: 6,206.90 | I42: 张桂龙 | J42: 1 | K42: 无 | L42: 否 | M42: 破损老化，无法利用 | N42: 否
A43: 41 | B43: 640-2 | C43: 防火门 | D43: ---- | E43: 1570*700 | F43: 6,465.52 | G43: 6,465.52 | I43: 张桂龙 | J43: 1 | K43: 无 | L43: 否 | M43: 破损老化，无法利用 | N43: 否
A44: 42 | B44: 640-2 | C44: 船用非风雨密钢质门 | D44: ---- | E44: A650*550-5 | F44: 862.07 | G44: 1,724.14 | I44: 张桂龙 | J44: 2 | K44: 无 | L44: 否 | M44: 破损老化，无法利用 | N44: 否
A45: 43 | B45: 640-2 | C45: 船用非风雨密钢质门 | D45: ---- | E45: FS1800*1300 | F45: 3,103.45 | G45: 3,103.45 | I45: 张桂龙 | J45: 1 | K45: 无 | L45: 否 | M45: 破损老化，无法利用 | N45: 否
A46: 44 | B46: 640-2 | C46: 船用非风雨密钢质门 | D46: ---- | E46: FD1800*700 | F46: 862.07 | G46: 862.07 | I46: 张桂龙 | J46: 1 | K46: 无 | L46: 否 | M46: 破损老化，无法利用 | N46: 否
A47: 45 | B47: 640-2 | C47: 船用非风雨密钢质门 | D47: ---- | E47: FD1800*700 | F47: 862.07 | G47: 862.07 | I47: 张桂龙 | J47: 1 | K47: 无 | L47: 否 | M47: 破损老化，无法利用 | N47: 否
A48: 46 | B48: 640-2 | C48: 钢板网门 | D48: ---- | E48: FSQ1750*1200 | F48: 862.07 | G48: 862.07 | I48: 张桂龙 | J48: 1 | K48: 无 | L48: 否 | M48: 破损老化，无法利用 | N48: 否
A49: 47 | B49: 640-2 | C49: 钢板网门 | D49: ---- | E49: FDQ1750*600 | F49: 862.07 | G49: 862.07 | I49: 张桂龙 | J49: 1 | K49: 无 | L49: 否 | M49: 破损老化，无法利用 | N49: 否
A50: 48 | B50: 640-2 | C50: 钢板网门 | D50: ---- | E50: FDQ1750*600 | F50: 862.07 | G50: 862.07 | I50: 张桂龙 | J50: 1 | K50: 无 | L50: 否 | M50: 破损老化，无法利用 | N50: 否
A51: 49 | B51: 106-1 | C51: 矩形窗玻璃 | E51: 600×400MM | F51: 无法查到 | G51: —— | I51: 张桂龙 | J51: 27 | K51: 无 | L51: 否 | M51: 破损老化，无法利用 | N51: 否
A52: 50 | B52: 106-1 | C52: 矩形窗玻璃 | E52: 950×700MM | F52: 无法查到 | G52: —— | I52: 张桂龙 | J52: 53 | K52: 无 | L52: 否 | M52: 破损老化，无法利用 | N52: 否
A53: 51 | B53: 60M-PSV-2 | C53: 克令吊 | E53: YSQP3/9 | F53: 186000 | G53: —— | H53: 2015.6.6 | I53: 张继贞 | J53: 1台 | K53: 无 | L53: 否 | M53: 改装退库，近期无项目可利用 | N53: 否
A54: 52 | B54: 60M-PSV-3 | C54: 克令吊 | E54: YSQP3/9 | F54: 186000 | G54: 186000 | H54: 2015.8.17 | I54: 张桂龙 | J54: 1台 | K54: 无 | L54: 否 | M54: 改装退库，近期无项目可利用 | N54: 否
A55: 53 | B55: 60M-PSV-5 | C55: 克令吊 | E55: YSQP3/9 | F55: 186000 | G55: 186000 | H55: 2016.3.16 | I55: 张继贞 | J55: 1台 | K55: 无 | L55: 否 | M55: 改装退库，近期无项目可利用 | N55: 否
A56: 54 | B56: 85M-6 | C56: 克令吊 | E56: YSQP3/14 | F56: 275000 | G56: 275000 | H56: 2016.4.29 | I56: 张桂龙 | J56: 1台 | K56: 无 | L56: 否 | M56: 改装退库，近期无项目可利用 | N56: 否
A57: 55 | B57: 60M-PSV-2 | C57: 侧推、电机 | E57: KT-72-B3 | F57: 985000 | G57: 985000 | H57: 2014.10.20 | I57: 张继贞 | J57: 1套 | K57: 无 | L57: 否 | M57: 改装退库，近期无项目可利用 | N57: 否
A58: 56 | B58: 60M-PSV-2 | C58: 侧推控制柜 | E58: ABSDP1 | F58: —— | G58: —— | I58: 张桂龙 | J58: 1台 | K58: 无 | L58: 否 | M58: 改装退库，近期无项目可利用 | N58: 否
A59: 57 | B59: 60M-PSV-3 | C59: 侧推、电机 | E59: KT-72-B3 | F59: 985000 | G59: 985000 | H59: 2015.9.22 | I59: 张继贞 | J59: 1套 | K59: 无 | L59: 否 | M59: 改装退库，近期无项目可利用 | N59: 否
A60: 58 | B60: 60M-PSV-3 | C60: 侧推控制柜 | E60: ABSDP1 | F60: —— | G60: —— | I60: 张桂龙 | J60: 1台 | K60: 无 | L60: 否 | M60: 改装退库，近期无项目可利用 | N60: 否
A61: 59 | B61: 60M-PSV-5 | C61: 侧推、电机 | E61: KT-72-B3 | F61: 985000 | G61: 985000 | H61: 2015.9.22 | I61: 张继贞 | J61: 1套 | K61: 无 | L61: 否 | M61: 改装退库，近期无项目可利用 | N61: 否
A62: 60 | B62: 60M-PSV-5 | C62: 侧推控制柜 | E62: ABSDP1 | F62: —— | G62: —— | I62: 张桂龙 | J62: 1台 | K62: 无 | L62: 否 | M62: 改装退库，近期无项目可利用 | N62: 否
G63: =SUM(G3:G62) -> 3796741.41
